bitfinex-derivatives/quotes_BNBF0:USTF0_20250904
["timestamp","ask_amount","ask_price","bid_price","bid_amount"]
[1756958384874,0.20493975,849.33,848.61,0.79478437]
[1756958385173,0.20493975,849.33,848.62,1.29474268]
[1756958385373,0.20493975,849.33,848.63,1.29474268]
[1756958385574,0.20493975,849.33,848.64,1.29474268]
[1756958385771,0.20493975,849.33,848.65,1.29474268]
[1756958385972,0.20493975,849.33,848.66,1.29474268]
[1756958386174,0.20493975,849.33,848.67,1.29474268]
[1756958386374,0.20493975,849.33,848.68,1.29474268]
[1756958386574,0.20493975,849.33,848.69,1.29474268]
[1756958386778,0.20493975,849.33,848.7,1.29474268]
[1756958386977,0.20493975,849.33,848.71,1.29474268]
[1756958387188,0.20493975,849.33,848.72,1.29474268]
[1756958387374,0.20493975,849.33,848.73,1.29474268]
[1756958387577,0.20493975,849.33,848.74,1.29474268]
[1756958387775,0.20493975,849.33,848.75,1.29474268]
[1756958387974,0.20493975,849.33,848.76,1.29474268]
[1756958388181,0.20493975,849.33,848.77,1.29474285]
[1756958388379,0.20493975,849.33,848.78,0.70557237]
[1756958388679,0.20493975,849.33,848.79,0.70557237]
[1756958388978,0.20493975,849.33,848.8,0.70557237]
[1756958389180,0.20493975,849.33,848.81,0.70557237]
[1756958389376,0.20493975,849.33,848.82,0.70557237]
[1756958389579,0.20493975,849.33,848.83,0.70557237]
[1756958389779,0.20493975,849.33,848.84,0.70557237]
[1756958389976,0.20493975,849.33,848.85,1.29474296]
[1756958390180,0.20493975,849.33,848.86,0.70557237]
[1756958390375,0.20493975,849.33,848.87,1.29474296]
[1756958390576,0.20493975,849.33,848.88,1.29474296]
[1756958390778,0.20493975,849.33,848.89,1.29474296]
[1756958390977,0.20493975,849.33,848.9,1.29474296]
[1756958391177,0.20493975,849.33,848.91,1.29474296]
[1756958391383,0.20493975,849.33,848.92,1.29474296]
[1756958391581,0.20493975,849.33,848.93,1.29474296]
[1756958391881,0.20493975,849.33,848.94,1.29474296]
[1756958392077,0.20493975,849.33,848.95,0.58917059]
[1756958392378,0.20493975,849.33,848.96,1.29526214]
[1756958392579,0.20493975,849.33,848.97,1.29526214]
[1756958392880,0.20493975,849.33,848.98,1.29526214]
[1756958393178,0.20493975,849.33,848.99,1.29526214]
[1756958393381,0.20493975,849.33,849.0,0.58917059]
[1756958393580,0.20493975,849.33,849.01,0.58917059]
[1756958393882,0.20493975,849.33,849.02,0.58917059]
[1756958394078,0.20493975,849.33,849.03,0.58917059]
[1756958394278,0.20493975,849.33,849.04,0.58917059]
[1756958394477,0.20493975,849.33,849.05,0.58917059]
[1756958394678,0.20493975,849.33,849.06,0.58917059]
[1756958394882,0.20493975,849.33,849.07,0.58917059]
[1756958395083,0.20493975,849.33,849.08,0.58917059]
[1756958395280,0.20493975,849.33,849.09,0.58917059]
[1756958395478,0.20493975,849.33,849.1,0.58917059]
[1756958395783,0.20493975,849.33,849.11,0.58917059]
[1756958396082,0.20493975,849.33,849.12,0.58917059]
[1756958396280,0.20493975,849.33,849.13,0.58917059]
[1756958396478,0.20493975,849.33,849.14,0.58917059]
[1756958396681,0.20493975,849.33,849.15,0.58917059]
[1756958396983,0.20493975,849.33,849.16,0.58917059]
[1756958397280,0.20493975,849.33,849.17,0.58917059]
[1756958397480,0.20493975,849.33,849.18,0.58917059]
[1756958397679,0.20493975,849.33,849.19,0.58917059]
[1756958397979,0.20493975,849.33,848.55,0.79478437]
[1756958398183,0.20493975,849.33,848.56,1.29526214]
[1756958398383,0.20493975,849.33,848.57,1.29526214]
[1756958398580,0.20493975,849.33,848.55,0.79478437]
[1756958398581,0.20493975,849.33,848.58,1.29526214]
[1756958398784,0.20493975,849.33,848.59,1.29526214]
[1756958398981,0.20493975,849.33,848.6,1.29526214]
[1756958399181,0.20493975,849.33,848.61,1.29526214]
[1756958399380,0.20493975,849.33,848.62,2.09004651]
[1756958399583,0.20493975,849.33,848.63,1.29526214]
[1756958399881,0.20493975,849.33,848.64,1.29526214]
[1756958400080,0.20493975,849.33,848.65,1.29526214]
[1756958400278,0.20493975,849.33,848.66,1.29526214]
[1756958400484,0.20493975,849.33,848.67,1.29526214]
[1756958400683,0.20493975,849.33,848.68,1.29526214]
[1756958400880,0.20493975,849.33,848.69,1.29526214]
[1756958401079,0.20493975,849.33,846.99,2.6362745]
[1756958401080,0.20493975,849.33,848.7,1.2952049]
[1756958401281,0.20493975,849.33,848.71,1.2952049]
[1756958401485,0.20493975,849.33,848.72,1.2952049]
[1756958401781,0.20493975,849.33,848.73,1.2952049]
[1756958402081,0.20493975,849.33,848.74,1.2952049]
[1756958402285,0.20493975,849.33,848.75,1.2952049]
[1756958402580,0.20493975,849.33,848.76,1.2952049]
[1756958402784,0.20493975,849.33,848.77,1.2952049]
[1756958403084,0.20493975,849.33,848.78,0.58910633]
[1756958403380,0.20493975,849.33,848.79,1.29477411]
[1756958403585,0.20493975,849.33,848.8,1.29477411]
[1756958403785,0.20493975,849.33,848.81,1.29477411]
[1756958403985,0.20493975,849.33,848.82,1.29477411]
[1756958404184,0.20493975,849.33,848.83,1.29477411]
[1756958404485,0.20493975,849.33,848.84,1.29477411]
[1756958404784,0.20493975,849.33,848.85,1.29477411]
[1756958404981,0.20493975,849.33,848.86,1.29477411]
[1756958405281,0.20493975,849.33,848.87,1.29477411]
[1756958405488,0.20493975,849.33,848.88,1.29477411]
[1756958405685,0.20493975,849.33,848.89,1.29477411]
[1756958405881,0.20493975,849.33,848.9,1.29477411]
[1756958406088,0.20493975,849.33,848.91,1.29477411]
[1756958406287,0.20493975,849.33,848.92,1.29477411]
[1756958406588,0.20493975,849.33,848.93,1.29477411]
[1756958406887,0.20493975,849.33,848.94,1.29477411]
[1756958407183,0.20493975,849.33,848.65,0.79476061]
[1756958407184,0.20493975,849.33,848.95,1.29477411]
[1756958407387,0.20493975,849.33,848.96,1.29477411]
[1756958407589,0.20493975,849.33,848.97,1.29477411]
[1756958407783,0.20493975,849.33,848.65,0.79476061]
[1756958407784,0.20493975,849.33,848.98,1.29477411]
[1756958407984,0.20493975,849.33,848.99,1.29477411]
[1756958408287,0.20493975,849.33,848.38,0.79476061]
[1756958408488,0.20493975,849.33,848.39,2.08938583]
[1756958408784,0.20493975,849.33,848.4,1.29462522]
[1756958408989,1.5797208,849.23,848.41,1.29462522]
[1756958409184,1.5797208,849.28,848.42,1.29462522]
[1756958409393,1.5797208,849.29,848.43,0.58924529]
[1756958409589,0.20493975,849.33,848.44,0.58924529]
[1756958409794,0.20493975,849.33,848.45,0.58924529]
[1756958409993,0.20493975,849.33,848.46,0.58924529]
[1756958410196,0.20493975,849.33,848.47,0.58924529]
[1756958410496,0.20493975,849.33,848.48,0.58953189]
[1756958410794,0.20493975,849.33,847.7,0.79476061]
[1756958411095,1.5797208,848.94,847.71,1.29363701]
[1756958411294,1.5797208,848.83,847.72,1.29363701]
[1756958411495,1.5797208,848.83,847.73,1.29363701]
[1756958411691,0.20493975,849.33,847.74,1.29363701]
[1756958411692,1.5797208,848.88,847.74,1.29363701]
[1756958411896,1.5797208,849.02,847.75,1.29363701]
[1756958412193,1.5797208,849.19,847.88,0.79476061]
[1756958412496,1.5797208,849.22,847.89,1.29363701]
[1756958412697,1.5797208,849.21,847.9,2.08839762]
[1756958412897,1.5797208,849.21,847.21,0.20509133]
[1756958412898,1.5797208,849.2,847.91,1.29363701]
[1756958413095,1.5797208,849.31,847.92,1.29363701]
[1756958413293,1.5797208,849.2,847.93,1.29363701]
[1756958413595,1.5797208,849.23,847.94,1.29363701]
[1756958413799,1.5797208,849.19,847.95,0.58957663]
[1756958414097,1.5797208,848.93,847.5,0.79476061]
[1756958414396,1.5797208,848.63,847.51,0.59007867]
[1756958414599,1.5797208,848.72,847.52,0.59007812]
[1756958414800,1.5797208,848.77,847.07,0.79476061]
[1756958414995,1.5797208,849.04,847.08,1.29199057]
[1756958415200,1.5797208,848.82,847.36,0.79476061]
[1756958415500,1.5797208,848.83,847.37,1.29199057]
[1756958415697,1.5797208,849.03,847.38,1.29199057]
[1756958415897,1.5797208,849.0,847.54,0.79476061]
[1756958416196,1.5797208,849.1,847.55,2.08675118]
[1756958416398,1.5797208,849.18,847.56,1.29199057]
[1756958416697,1.5797208,849.18,847.57,1.29199057]
[1756958416901,1.5797208,849.32,847.58,1.29199057]
[1756958417095,1.5797208,849.24,847.62,0.79476061]
[1756958417300,0.20493975,849.33,847.63,1.29199057]
[1756958417497,0.20493975,849.33,847.64,1.29199057]
[1756958417698,0.20493975,849.33,847.65,1.29199057]
[1756958417904,0.20493975,849.33,847.66,1.28968176]
[1756958418097,0.20493975,849.33,847.67,1.28968176]
[1756958418299,1.78466055,849.33,847.68,1.28968176]
[1756958418499,0.20493975,849.33,847.69,1.28968176]
[1756958418702,0.20493975,849.33,847.68,0.78803621]
[1756958418703,1.5797208,849.32,847.72,0.78803621]
[1756958418899,0.20493975,849.33,847.76,0.78803621]
[1756958419099,0.20493975,849.33,847.77,1.28968176]
[1756958419305,0.20493975,849.33,847.78,1.28968176]
[1756958419506,0.20493975,849.33,847.79,1.28968176]
[1756958419704,0.20493975,849.33,847.8,1.28968176]
[1756958419901,0.20493975,849.33,847.81,1.28968176]
[1756958420101,0.20493975,849.33,847.82,1.28968176]
[1756958420401,0.20493975,849.33,847.83,1.28968176]
[1756958420605,0.20493975,849.33,847.84,1.28968176]
[1756958420906,0.20493975,849.33,847.85,1.28968176]
[1756958421102,0.20493975,849.33,846.88,2.6362745]
[1756958421103,0.20493975,849.33,847.86,1.28968176]
[1756958421405,0.20493975,849.33,847.87,1.28968176]
[1756958421602,0.20493975,849.33,847.88,1.28968176]
[1756958421802,0.20493975,849.33,847.89,1.28968176]
[1756958422005,0.20493975,849.33,847.9,1.28968176]
[1756958422207,0.20493975,849.33,847.91,1.28968176]
[1756958422405,0.20493975,849.33,847.92,1.28968176]
[1756958422606,0.20493975,849.33,847.93,1.28968176]
[1756958422906,0.20493975,849.33,847.94,1.28968176]
[1756958423202,0.20493975,849.33,847.95,1.28968176]
[1756958423401,0.20493975,849.33,847.96,1.28968176]
[1756958423601,0.20493975,849.33,847.97,1.28968176]
[1756958423807,0.20493975,849.33,847.98,1.28968176]
[1756958424002,0.20493975,849.33,847.99,1.28968176]
[1756958424207,0.20493975,849.33,848.0,1.28968176]
[1756958424406,0.20493975,849.33,848.01,1.28968176]
[1756958424704,0.20493975,849.33,848.02,1.28968176]
[1756958425002,0.20493975,849.33,848.03,1.28968176]
[1756958425207,0.20493975,849.33,848.04,1.28968176]
[1756958425407,0.20493975,849.33,848.05,1.28968176]
[1756958425706,0.20493975,849.33,848.06,1.28968176]
[1756958425907,0.20493975,849.33,848.07,1.28968176]
[1756958426107,0.20493975,849.33,848.08,1.28968176]
[1756958426403,0.20493975,849.33,848.09,1.28968176]
[1756958426606,0.20493975,849.33,848.1,1.28968176]
[1756958426903,0.20493975,849.33,848.11,1.28968176]
[1756958427203,0.20493975,849.33,848.12,1.28968176]
[1756958427404,0.20493975,849.33,848.13,1.28968176]
[1756958427608,0.20493975,849.33,848.14,1.28968176]
[1756958427808,0.20493975,849.33,848.15,1.28968176]
[1756958428009,0.20493975,849.33,848.16,1.28968176]
[1756958428309,0.20493975,849.33,848.19,0.78803621]
[1756958428510,0.20493975,849.33,848.2,2.07771797]
[1756958428809,0.20493975,849.33,848.22,0.78803621]
[1756958429009,0.20493975,849.33,848.25,0.78803621]
[1756958429206,0.20493975,849.33,848.26,1.28968176]
[1756958429406,0.20493975,849.33,848.27,1.28968176]
[1756958429605,0.20493975,849.33,848.28,1.28968176]
[1756958429806,0.20493975,849.33,848.29,1.28968176]
[1756958430111,0.20493975,849.33,848.3,1.28968176]
[1756958430309,0.20493975,849.33,848.31,1.28968176]
[1756958430508,0.20493975,849.33,848.32,1.28968176]
[1756958430712,0.20493975,849.33,848.33,1.28968176]
[1756958430908,0.20493975,849.33,848.34,1.28968176]
[1756958431213,0.20493975,849.33,848.35,1.28968176]
[1756958431413,0.20493975,849.33,848.36,1.28968176]
[1756958431612,0.20493975,849.33,848.37,1.28968176]
[1756958431912,0.20493975,849.33,848.38,1.28968176]
[1756958432113,0.20493975,849.33,848.39,1.28968176]
[1756958432309,0.20493975,849.33,848.4,1.28968176]
[1756958432512,0.20493975,849.33,848.41,1.28968176]
[1756958432808,0.20493975,849.33,848.03,0.78803621]
[1756958433009,0.20493975,849.33,848.04,1.28754308]
[1756958433214,0.20493975,849.33,848.05,1.28754308]
[1756958433413,0.20493975,849.33,848.06,1.28754308]
[1756958433613,0.20493975,849.33,848.07,1.28754308]
[1756958433814,0.20493975,849.33,848.08,1.28754308]
[1756958434115,0.20493975,849.33,848.09,1.28754308]
[1756958434315,0.20493975,849.33,848.1,1.28754308]
[1756958434514,0.20493975,849.33,848.11,1.28754308]
[1756958434709,0.20493975,849.33,848.12,1.28754308]
[1756958434911,0.20493975,849.33,848.13,1.28754308]
[1756958435114,0.20493975,849.33,848.14,1.28754308]
[1756958435412,0.20493975,849.33,848.15,1.28754308]
[1756958435613,0.20493975,849.33,848.16,1.28754308]
[1756958435916,0.20493975,849.33,848.17,1.28754308]
[1756958436111,0.20493975,849.33,848.18,1.28754308]
[1756958436314,0.20493975,849.33,848.19,1.28754308]
[1756958436614,0.20493975,849.33,848.2,1.28754308]
[1756958436811,0.20493975,849.33,848.21,1.28754308]
[1756958437011,0.20493975,849.33,848.22,1.28754308]
[1756958437315,0.20493975,849.33,848.23,1.28754308]
[1756958437517,0.20493975,849.33,848.24,1.28754308]
[1756958437717,0.20493975,849.33,848.25,1.28754308]
[1756958437918,0.20493975,849.33,848.26,1.28754308]
[1756958438119,0.20493975,849.33,848.27,1.28754308]
[1756958438316,0.20493975,849.33,848.28,1.28754308]
[1756958438518,0.20493975,849.33,848.29,1.28754308]
[1756958438714,0.20493975,849.33,848.3,1.28754308]
[1756958439015,0.20493975,849.33,848.31,1.28754308]
[1756958439214,0.20493975,849.33,848.32,1.28754308]
[1756958439417,0.20493975,849.33,848.33,1.28754308]
[1756958439615,0.20493975,849.33,848.34,1.28754308]
[1756958439915,0.20493975,849.33,848.35,1.28754308]
[1756958440116,0.20493975,849.33,848.36,1.28754308]
[1756958440312,0.20493975,849.33,848.37,1.28754308]
[1756958440519,0.20493975,849.33,848.38,1.28754308]
[1756958440715,0.20493975,849.33,848.39,1.28754308]
[1756958440917,0.20493975,849.33,848.4,1.28754308]
[1756958441120,0.20493975,849.33,848.41,1.28757123]
[1756958441315,0.20493975,849.33,848.42,1.28757123]
[1756958441519,0.20493975,849.33,848.43,1.28757123]
[1756958441816,0.20493975,849.33,848.44,1.28757123]
[1756958442016,0.20493975,849.33,848.45,0.69821726]
[1756958442216,0.20493975,849.33,848.46,0.69821726]
[1756958442418,0.20493975,849.33,848.05,0.78803621]
[1756958442616,0.20493975,849.33,848.06,1.28793843]
[1756958442821,0.20493975,849.33,848.07,1.28793843]
[1756958443122,0.20493975,849.33,848.08,1.28793843]
[1756958443420,0.20493975,849.33,848.09,1.28793843]
[1756958443618,0.20493975,849.33,848.1,1.28793843]
[1756958443821,0.20493975,849.33,848.11,1.28793843]
[1756958444017,0.20493975,849.33,848.12,1.28793843]
[1756958444217,0.20493975,849.33,848.13,1.28793843]
[1756958444417,0.20493975,849.33,848.14,1.28793843]
[1756958444718,0.20493975,849.33,848.15,1.28793843]
[1756958444917,0.20493975,849.33,848.16,1.28793843]
[1756958445117,0.20493975,849.33,848.17,1.28793843]
[1756958445318,0.20493975,849.33,848.18,1.28793843]
[1756958445618,0.20493975,849.33,848.19,1.28793843]
[1756958445821,0.20493975,849.33,848.2,1.28793843]
[1756958446017,0.20493975,849.33,848.21,1.28793843]
[1756958446218,0.20493975,849.33,848.22,1.28793843]
[1756958446418,0.20493975,849.33,848.23,1.28793843]
[1756958446617,0.20493975,849.33,848.24,1.28793843]
[1756958446822,0.20493975,849.33,848.25,1.28793843]
[1756958447020,0.20493975,849.33,848.26,1.28793843]
[1756958447218,0.20493975,849.33,848.27,1.28793843]
[1756958447418,0.20493975,849.33,848.28,1.28793843]
[1756958447719,0.20493975,849.33,848.29,1.28793843]
[1756958447922,0.20493975,849.33,848.3,1.28793843]
[1756958448123,0.20493975,849.33,848.31,1.28793843]
[1756958448318,0.20493975,849.33,848.32,1.28793843]
[1756958448523,0.20493975,849.33,848.33,1.28793843]
[1756958448720,0.20493975,849.33,848.34,1.28793843]
[1756958448921,0.20493975,849.33,848.35,1.28793843]
[1756958449225,0.20493975,849.33,848.36,0.69858507]
[1756958449422,0.20493975,849.33,848.37,1.2879386]
[1756958449622,0.20493975,849.33,848.38,1.2879386]
[1756958449824,0.20493975,849.33,848.39,1.2879386]
[1756958450024,0.20493975,849.33,848.4,1.2879386]
[1756958450325,0.20493975,849.33,848.41,1.2879386]
[1756958450525,0.20493975,849.33,848.42,1.2879386]
[1756958450725,0.20493975,849.33,848.43,1.2879386]
[1756958450926,0.20493975,849.33,848.44,1.2879386]
[1756958451125,0.20493975,849.33,848.45,0.69858507]
[1756958451424,0.20493975,849.33,848.46,0.69858507]
[1756958451725,0.20493975,849.33,848.09,0.78803621]
[1756958451928,0.20493975,849.33,848.1,1.28845042]
[1756958452129,0.20493975,849.33,848.11,1.28845042]
[1756958452325,0.20493975,849.33,848.12,1.28845042]
[1756958452529,0.20493975,849.33,848.13,1.28845042]
[1756958452729,0.20493975,849.33,848.14,1.28845042]
[1756958453030,0.20493975,849.33,848.15,1.28845042]
[1756958453232,0.20493975,849.33,848.16,1.28845042]
[1756958453430,0.20493975,849.33,848.17,1.28845042]
[1756958453627,0.20493975,849.33,848.18,1.28845042]
[1756958453827,0.20493975,849.33,848.19,1.28845042]
[1756958454032,0.20493975,849.33,848.2,1.28845042]
[1756958454328,0.20493975,849.33,848.21,1.28845042]
[1756958454529,0.20493975,849.33,848.22,1.28845042]
[1756958454830,1.5797208,850.11,848.23,1.28845042]
[1756958455129,0.20496208,849.06,848.24,1.28845042]
[1756958455333,1.5797208,850.11,848.25,1.28845042]
[1756958455533,0.20496027,848.86,848.26,1.28845042]
[1756958455733,0.20496027,848.86,848.27,1.28845042]
[1756958455930,1.5797208,850.11,848.28,1.28845042]
[1756958456135,0.20495846,848.72,848.29,1.28845042]
[1756958456329,0.20495846,848.72,848.1,0.78803621]
[1756958456330,1.5797208,849.97,848.3,1.28845042]
[1756958456530,1.5797208,849.97,848.31,1.28845042]
[1756958456834,1.5797208,849.97,848.32,1.28845042]
[1756958457034,1.5797208,849.97,848.33,1.28845042]
[1756958457333,0.2049645,849.56,848.34,1.28845042]
[1756958457528,0.2049645,849.56,848.35,1.28845042]
[1756958457734,0.2049645,849.56,848.36,1.28845042]
[1756958458034,0.2049645,849.56,848.37,1.28845042]
[1756958458234,0.2049645,849.56,848.38,1.28845042]
[1756958458530,0.2049645,849.56,848.39,1.28845042]
[1756958458734,0.2049645,849.56,848.4,1.28845042]
[1756958458934,0.2049645,849.56,848.41,1.28845042]
[1756958459131,0.2049645,849.56,848.42,1.28845042]
[1756958459334,0.2049645,849.56,848.43,1.28845042]
[1756958459534,0.2049645,849.56,848.44,1.28845042]
[1756958459834,0.2049645,849.56,848.45,1.28845042]
[1756958460031,0.2049645,849.56,848.46,1.28845042]
[1756958460231,0.2049645,849.56,848.47,1.28845042]
[1756958460436,0.2049645,849.56,848.48,1.28845042]
[1756958460732,0.2049645,849.56,848.49,1.28845042]
[1756958461032,0.2049645,849.56,848.5,1.28845042]
[1756958461232,0.2049645,849.56,848.51,1.28845042]
[1756958461432,0.2049645,849.56,848.2,0.78803621]
[1756958461433,0.2049645,849.56,848.52,1.28845042]
[1756958461632,0.2049645,849.56,848.53,1.28845042]
[1756958461836,0.2049645,849.56,848.54,1.28845042]
[1756958462037,0.2049645,849.56,848.55,0.69909925]
[1756958462237,0.2049645,849.56,848.56,0.69909925]
[1756958462431,0.2049645,849.56,848.57,0.69909925]
[1756958462735,0.2049645,849.56,848.58,0.69909925]
[1756958462935,0.2049645,849.56,848.19,0.78803621]
[1756958463143,0.2049645,849.56,848.2,1.28895665]
[1756958463335,0.2049645,849.56,848.21,1.28895665]
[1756958463536,0.2049645,849.56,848.22,1.28895665]
[1756958463736,0.2049645,849.56,848.23,1.28895665]
[1756958463933,0.2049645,849.56,848.24,1.28895665]
[1756958464137,0.2049645,849.56,848.25,1.28895665]
[1756958464434,0.2049645,849.56,848.26,1.28895665]
[1756958464635,0.2049645,849.56,848.27,1.28895665]
[1756958464840,0.2049645,849.56,848.3,0.78803621]
[1756958465040,0.2049645,849.56,848.31,1.28895665]
[1756958465241,0.2049645,849.56,848.32,1.28895665]
[1756958465440,0.2049645,849.56,848.33,1.28895665]
[1756958465641,0.2049645,849.56,848.34,1.28895665]
[1756958465841,0.2049645,849.56,848.35,1.28895665]
[1756958466040,0.2049645,849.56,848.36,1.28895665]
[1756958466236,0.2049645,849.56,848.37,1.28895665]
[1756958466537,0.2049645,849.56,848.38,1.28895665]
[1756958466741,0.2049645,849.56,848.39,1.28895665]
[1756958466940,0.2049645,849.56,848.4,1.28895665]
[1756958467137,0.2049645,849.56,848.41,1.28895665]
[1756958467436,0.2049645,849.56,848.42,1.28895665]
[1756958467639,0.2049645,849.56,848.43,1.28895665]
[1756958467943,0.2049645,849.56,848.44,1.28895665]
[1756958468141,0.2049645,849.56,848.45,1.28895665]
[1756958468343,0.2049645,849.56,848.46,1.28895665]
[1756958468542,0.2049645,849.56,848.47,1.28895665]
[1756958468746,0.2049645,849.56,848.48,1.28895665]
[1756958468945,0.2049645,849.56,848.49,1.28895665]
[1756958469145,0.2049645,849.56,848.5,1.28895665]
[1756958469342,0.2049645,849.56,848.51,1.28895665]
[1756958469546,0.2049645,849.56,848.52,1.28895665]
[1756958469745,0.2049645,849.56,848.53,1.28895665]
[1756958470042,0.2049645,849.56,848.54,1.28895665]
[1756958470345,0.2049645,849.56,848.55,1.28895665]
[1756958470541,0.2049645,849.56,848.56,1.28895665]
[1756958470743,0.2049645,849.56,848.57,1.28895665]
[1756958470948,0.2049645,849.56,848.58,1.28895665]
[1756958471149,0.2049645,849.56,848.59,1.28895665]
[1756958471343,0.2049645,849.56,848.6,1.28895665]
[1756958471545,0.2049645,849.56,848.61,1.28895665]
[1756958471745,0.2049645,849.56,848.62,1.28895665]
[1756958471945,0.2049645,849.56,848.63,1.28895665]
[1756958472148,0.2049645,849.56,848.64,1.28895665]
[1756958472346,0.2049645,849.56,848.65,1.28895665]
[1756958472544,0.2049645,849.56,848.66,1.28895665]
[1756958472748,0.2049645,849.56,848.67,1.28895665]
[1756958472948,0.2049645,849.56,848.68,1.28895665]
[1756958473149,0.2049645,849.56,848.69,0.58923881]
[1756958473347,0.2049645,849.56,848.7,1.28922891]
[1756958473545,0.2049645,849.56,848.71,1.28922891]
[1756958473744,0.2049645,849.56,848.44,0.78803621]
[1756958473745,0.2049645,849.56,848.72,1.28922891]
[1756958474045,0.2049645,849.56,848.73,0.58923881]
[1756958474244,0.2049645,849.56,848.74,0.58923881]
[1756958474446,0.2049645,849.56,848.75,0.58923881]
[1756958474649,0.2049645,849.56,848.76,0.58923881]
[1756958474849,0.2049645,849.56,848.77,0.58923881]
[1756958475049,0.2049645,849.56,848.46,0.78803621]
[1756958475050,0.2049645,849.56,848.78,0.58923881]
[1756958475344,0.2049645,849.56,848.79,0.58923881]
[1756958475546,0.2049645,849.56,848.8,0.58923881]
[1756958475748,0.2049645,849.56,848.81,0.58923881]
[1756958476045,0.2049645,849.56,848.82,0.58923881]
[1756958476245,0.2049645,849.56,848.83,0.58912292]
[1756958476446,0.2049645,849.56,848.84,0.58912292]
[1756958476647,0.2049645,849.56,848.85,0.58912292]
[1756958476850,0.2049645,849.56,848.45,0.78803621]
[1756958477046,0.2049645,849.56,848.46,1.29020794]
[1756958477253,0.2049645,849.56,848.47,1.29020794]
[1756958477448,0.2049645,849.56,848.48,1.29020794]
[1756958477648,0.2049645,849.56,848.49,1.29020794]
[1756958477874,0.2049645,849.56,848.5,1.29020794]
[1756958478052,0.2049645,849.56,848.51,1.29020794]
[1756958478352,0.2049645,849.56,848.52,1.29020794]
[1756958478653,0.2049645,849.56,848.53,1.29020794]
[1756958478948,0.2049645,849.56,848.54,1.29020794]
[1756958479152,0.2049645,849.56,848.55,1.29020794]
[1756958479352,0.2049645,849.56,848.56,1.29020794]
[1756958479547,0.2049645,849.56,848.57,1.29020794]
[1756958479748,0.2049645,849.56,848.58,1.29020794]
[1756958479951,0.2049645,849.56,848.59,1.29020794]
[1756958480251,0.2049645,849.56,848.45,0.78803621]
[1756958480252,0.2049645,849.56,848.6,1.29020794]
[1756958480548,0.2049645,849.56,848.61,1.29020794]
[1756958480752,0.2049645,849.56,848.62,1.29020794]
[1756958480953,0.2049645,849.56,848.63,1.29020794]
[1756958481152,0.2049645,849.56,848.64,1.29020794]
[1756958481349,0.2049645,849.56,848.65,1.29020794]
[1756958481553,0.2049645,849.56,848.66,1.29020794]
[1756958481749,0.2049645,849.56,848.67,1.29020794]
[1756958481950,0.2049645,849.56,848.68,1.29020794]
[1756958482154,0.2049645,849.56,848.69,1.29020794]
[1756958482356,0.2049645,849.56,848.7,1.29020794]
[1756958482550,0.2049645,849.56,848.71,1.29020794]
[1756958482755,0.2049645,849.56,848.72,1.29020794]
[1756958482955,0.2049645,849.56,848.73,1.29020794]
[1756958483152,0.2049645,849.56,848.74,1.29020794]
[1756958483352,0.2049645,849.56,848.75,1.29020794]
[1756958483553,0.2049645,849.56,848.76,1.29020794]
[1756958483752,0.2049645,849.56,848.77,0.58912336]
[1756958483956,0.2049645,849.56,848.78,0.58912336]
[1756958484156,0.2049645,849.56,848.79,0.58912336]
[1756958484352,0.2049645,849.56,848.8,0.58912336]
[1756958484656,0.2049645,849.56,848.81,0.58912336]
[1756958484851,0.2049645,849.56,848.82,0.58912369]
[1756958485056,0.2049645,849.56,848.83,0.58912369]
[1756958485254,0.2049645,849.56,848.84,0.58912369]
[1756958485453,0.2049645,849.56,848.85,0.58912369]
[1756958485651,0.2049645,849.56,848.86,0.58912369]
[1756958485855,0.2049645,849.56,848.87,0.58912369]
[1756958486051,0.2049645,849.56,848.88,0.58912369]
[1756958486255,0.2049645,849.56,848.47,0.78803621]
[1756958486454,0.2049645,849.56,848.48,1.29303742]
[1756958486656,0.2049645,849.56,848.49,1.29303742]
[1756958486856,0.2049645,849.56,848.5,1.29303742]
[1756958487056,0.2049645,849.56,848.51,1.29303742]
[1756958487257,0.2049645,849.56,848.52,1.29303742]
[1756958487453,0.2049645,849.56,848.53,1.29303742]
[1756958487658,0.2049645,849.56,848.54,1.29303742]
[1756958487954,0.2049645,849.56,848.55,1.29303742]
[1756958488256,0.2049645,849.56,848.56,1.29303742]
[1756958488454,0.2049645,849.56,848.57,1.29303742]
[1756958488757,0.2049645,849.56,848.58,1.29303742]
[1756958488957,0.2049645,849.56,848.59,1.29303742]
[1756958489159,0.2049645,849.56,848.6,1.29303742]
[1756958489354,0.2049645,849.56,848.61,1.29303742]
[1756958489558,0.2049645,849.56,848.62,1.29303742]
[1756958489853,0.2049645,849.56,848.63,1.29303742]
[1756958490053,0.2049645,849.56,848.64,1.29303742]
[1756958490252,0.2049645,849.56,848.65,1.29303742]
[1756958490556,0.2049645,849.56,848.66,1.29303742]
[1756958490756,0.2049645,849.56,848.67,1.29303742]
[1756958490957,0.2049645,849.56,848.68,1.29303742]
[1756958491155,0.2049645,849.56,848.69,1.29303742]
[1756958491354,0.2049645,849.56,848.7,1.29303742]
[1756958491654,0.2049645,849.56,848.71,1.29303742]
[1756958491859,0.2049645,849.56,848.72,1.29303742]
[1756958492054,0.2049645,849.56,848.73,1.29303742]
[1756958492258,0.2049645,849.56,848.74,1.29303742]
[1756958492459,0.2049645,849.56,848.75,1.29303742]
[1756958492654,0.2049645,849.56,848.76,1.29303742]